lending/lending_fUSD_20241212
["ID","MTS","AMOUNT","RATE_DAILY","PERIOD"]
[345096110,1734013833660,-500.0,0.00015464,2]
[345096111,1734013833670,-500.0,0.00015464,2]
[345096112,1734013833680,-500.0,0.00015464,2]
[345096113,1734013833690,-500.0,0.00015464,2]
[345096114,1734013833700,-500.0,0.00015464,2]
[345096115,1734013833709,-500.0,0.00015464,2]
[345096116,1734013833719,-500.0,0.00015464,2]
[345096117,1734013833728,-500.0,0.00015464,2]
[345096118,1734013833738,-500.0,0.00015464,2]
[345096119,1734013833748,-512.99673212,0.00015464,2]
[345096120,1734013833758,-500.0,0.00015464,2]
[345096121,1734013833768,-500.0,0.00015464,2]
[345096122,1734013833777,-500.0,0.00015464,2]
[345096123,1734013833787,-502.39369936,0.00015464,2]
[345096124,1734013833796,-500.0,0.00015464,2]
[345096125,1734013833806,-500.0,0.00015464,2]
[345096126,1734013833816,-500.0,0.00015464,2]
[345096127,1734013833825,-500.0,0.00015464,2]
[345096128,1734013833835,-199.97454028,0.00015464,2]
[345096129,1734013833845,-500.0,0.00015464,2]
[345096130,1734013833854,-500.0,0.00015464,2]
[345096131,1734013833864,-3850.36,0.00015467,2]
[345096132,1734013833875,-500.0,0.0001548,2]
[345096133,1734013833885,-436.0,0.000155,2]
[345096134,1734013833898,-432.646,0.0001556,2]
[345096135,1734013833908,-722.24,0.00015616,2]
[345096136,1734013833917,-152.68768898,0.00015628,2]
[345096137,1734013833927,-200.0,0.00015728,2]
[345096138,1734013833937,-1056.0,0.00015766,2]
[345096139,1734013833946,-164.2,0.00015787,2]
[345096140,1734013833956,-152.68768893,0.0001579,2]
[345096141,1734013833967,-436.0,0.000158,2]
[345096142,1734013833977,-152.68768893,0.00015952,2]
[345096143,1734013833987,-1000.0,0.00016034,2]
[345096144,1734013833998,-1112.31884305,0.00016052,2]
[345096145,1734013834008,-150.0,0.00016113,2]
[345096146,1734013834018,-152.68768893,0.00016114,2]
[345096147,1734013834029,-1500.0,0.00016144,2]
[345096148,1734013834038,-301.38,0.00016145,2]
[345096149,1734013834048,-150.78,0.00016145,2]
[345096150,1734013834058,-378.23646012,0.00016156,2]
[345096151,1734013834067,-1500.0,0.00016158,2]
[345096152,1734013834077,-156.7,0.00016167,2]
[345096153,1734013834096,-150.0,0.00016172,2]
[345096154,1734013834107,-722.24,0.00016194,2]
[345096155,1734013834117,-2353.0,0.00016216,2]
[345096156,1734013834128,-906.14714,0.0001622,2]
[345096157,1734013834138,-1500.0,0.00016227,2]
[345096158,1734013834151,-2000.0,0.00016249,2]
[345096159,1734013834165,-500.0,0.00016249,2]
[345096160,1734013834176,-150.0,0.00016255,2]
[345096161,1734013834187,-150.0,0.00016261,2]
[345096162,1734013834197,-150.0,0.00016261,2]
[345096163,1734013834210,-3288.7449,0.00016268,2]
[345096164,1734013834220,-150.0,0.00016268,2]
[345096165,1734013834231,-150.0,0.00016268,2]
[345096166,1734013834242,-152.68768893,0.00016275,2]
[345096167,1734013834254,-150.0,0.00016279,2]
[345096168,1734013834264,-219.94445223,0.0001628,2]
[345096169,1734013834275,-10666.74255655,0.0001628,2]
[345096170,1734013834285,-169.80396528,0.0001628,2]
[345096171,1734013834296,-150.0,0.00016288,2]
[345096172,1734013834305,-150.0,0.00016295,2]
[345096173,1734013834315,-150.0,0.00016302,2]
[345096174,1734013834326,-150.0,0.00016304,2]
[345096175,1734013834336,-1500.0,0.00016315,2]
[345096176,1734013834347,-743.41079249,0.00016319,2]
[345096177,1734013834358,-150.0,0.00016329,2]
[345096178,1734013834369,-150.0,0.0001633,2]
[345096179,1734013834380,-150.0,0.00016348,2]
[345096180,1734013834391,-150.0,0.00016348,2]
[345096181,1734013834403,-150.0,0.00016353,2]
[345096182,1734013834414,-759.27943252,0.00016355,2]
[345096183,1734013834425,-759.27943252,0.00016357,2]
[345096184,1734013834436,-2319.49862317,0.00016359,2]
[345096185,1734013834447,-2319.49862317,0.00016359,2]
[345096186,1734013834458,-2319.49862317,0.0001636,2]
[345096187,1734013834468,-759.27943252,0.0001636,2]
[345096188,1734013834479,-1147.145,0.00016361,2]
[345096189,1734013834490,-759.27943252,0.00016363,2]
[345096190,1734013834501,-5222.3186469,0.00016368,2]
[345096191,1734013834511,-857.6118417,0.00016368,2]
[345096192,1734013834522,-2518.6084943,0.00016368,2]
[345096193,1734013834532,-759.27943252,0.00016368,2]
[345096194,1734013834543,-2319.49862317,0.00016371,2]
[345096195,1734013834553,-2319.49862317,0.00016374,2]
[345096196,1734013834563,-759.27943252,0.00016376,2]
[345096197,1734013834574,-9608.7551,0.00016378,2]
[345096198,1734013834583,-407.54445265,0.00016378,2]
[345096199,1734013834593,-500.0,0.00016378,2]
[345096200,1734013834604,-500.0,0.00016378,2]
[345096201,1734013834614,-500.0,0.00016378,2]
[345096202,1734013834624,-506.74271173,0.00016378,2]
[345096203,1734013834634,-500.0,0.00016378,2]
[345096204,1734013834645,-500.0,0.00016378,2]
[345096205,1734013834656,-500.0,0.00016379,2]
[345096206,1734013834666,-500.0,0.00016379,2]
[345096207,1734013834675,-552.1,0.00016379,2]
[345096208,1734013834684,-500.0,0.00016379,2]
[345096209,1734013834694,-500.0,0.00016379,2]
[345096210,1734013834704,-500.0,0.00016379,2]
[345096211,1734013834715,-500.0,0.00016379,2]
[345096212,1734013834724,-500.0,0.00016379,2]
[345096213,1734013834734,-413.0,0.00016379,2]
[345096214,1734013834744,-500.0,0.00016379,2]
[345096215,1734013834754,-500.0,0.00016379,2]
[345096216,1734013834764,-500.0,0.00016379,2]
[345096217,1734013834774,-500.0,0.00016379,2]
[345096218,1734013834783,-500.0,0.00016379,2]
[345096219,1734013834793,-172.69,0.00016379,2]
[345096220,1734013834803,-500.0,0.00016379,2]
[345096221,1734013834814,-500.0,0.00016379,2]
[345096222,1734013834823,-500.0,0.00016379,2]
[345096223,1734013834833,-500.0,0.00016379,2]
[345096224,1734013834843,-162.05,0.00016379,2]
[345096225,1734013834852,-500.0,0.00016379,2]
[345096226,1734013834862,-256.3,0.00016379,2]
[345096227,1734013834871,-500.0,0.00016379,2]
[345096228,1734013834881,-907.0,0.0001638,2]
[345096229,1734013834891,-8136.41264426,0.0001638,2]
[345096230,1734013835152,-682.4999995,0.0001638,2]
[345096231,1734013835189,-11181.08735624,0.0001638,2]
[345096232,1734013835199,-26300.5548879,0.0001638,2]
[345096233,1734013835213,-568.17990878,0.0001638,2]
[345096234,1734013835232,-7233.67195372,0.0001638,2]
[345096235,1734013835247,-446.53690036,0.0001638,2]
[345096242,1734013838088,-1068.66197913,0.000154,2]
[345096243,1734013838100,-31.33802087,0.000154,2]
[345096244,1734013838110,-500.0,0.00016373,2]
[345096245,1734013838120,-3582.01362298,0.0001638,2]
[345096246,1734013838131,-1034.88127671,0.0001638,2]
[345096247,1734013838181,-3965.5,0.0001638,2]
[345096248,1734013838193,-2433.08123783,0.0001638,2]
[345096249,1734013838206,-60130.6917,0.0001638,2]
[345096250,1734013838274,-606.79999995,0.0001638,2]
[345096251,1734013838286,-2336.869332,0.0001638,2]
[345096252,1734013838366,-8373.00691719,0.0001638,2]
[345096253,1734013838378,-251.76390582,0.0001638,2]
[345096269,1734013840078,-671.07000009,0.00015079,2]
[345096270,1734013840248,-334.43999991,0.00015079,2]
[345096271,1734013840258,-50460.89205374,0.0001638,2]
[345096272,1734013840269,-2318.01699035,0.0001638,2]
[345096273,1734013840280,-507.2718916,0.0001638,2]
[345096274,1734013840292,-1982.73499738,0.0001638,2]
[345096275,1734013840303,-14942.10945481,0.0001638,2]
[345096276,1734013842600,-496.06666257,0.0001638,2]
[345096277,1734013842688,-216.93333743,0.0001638,2]
[345096278,1734013842698,-22725.84872958,0.0001638,2]
[345096279,1734013842709,-11175.054306,0.0001638,2]
[345096280,1734013842721,-1951.78662108,0.0001638,2]
[345096281,1734013842732,-803.47028146,0.0001638,2]
[345096302,1734013843292,-698.25,0.0001638,2]
[345096303,1734013843303,-2027.5872094,0.0001638,2]
[345096304,1734013843383,-5896.39648808,0.0001638,2]
[345096305,1734013843395,-1009.19137501,0.0001638,2]
[345096306,1734013843550,-2130007.14361213,0.0001638,2]
[345096307,1734013843560,-200.0,0.00016386,2]
[345096308,1734013843570,-2319.49862317,0.00016395,2]
[345096309,1734013843579,-152.68768893,0.00016437,2]
[345096310,1734013843588,-200.0,0.00016438,2]
[345096311,1734013843598,-200.0,0.00016438,2]
[345096312,1734013843608,-200.0,0.00016438,2]
[345096313,1734013843618,-200.0,0.00016438,2]
[345096314,1734013843628,-200.0,0.00016438,2]
[345096315,1734013843638,-200.0,0.00016438,2]
[345096316,1734013843647,-200.0,0.00016438,2]
[345096317,1734013843658,-200.0,0.00016438,2]
[345096318,1734013843668,-200.0,0.00016438,2]
[345096319,1734013843677,-200.0,0.00016438,2]
[345096320,1734013843687,-620.44,0.00016438,2]
[345096321,1734013843696,-620.44,0.00016438,2]
[345096341,1734013843884,-620.44,0.00016438,2]
[345096344,1734013843894,-620.44,0.00016438,2]
[345096346,1734013843905,-620.44,0.00016438,2]
[345096348,1734013843914,-620.44,0.00016438,2]
[345096350,1734013843923,-620.44,0.00016438,2]
[345096352,1734013843932,-620.44,0.00016438,2]
[345096353,1734013843941,-620.44,0.00016438,2]
[345096354,1734013843951,-620.44,0.00016438,2]
[345096355,1734013843961,-620.44,0.00016438,2]
[345096356,1734013843970,-620.44,0.00016438,2]
[345096357,1734013843980,-620.44,0.00016438,2]
[345096358,1734013843990,-620.44,0.00016438,2]
[345096359,1734013843999,-620.44,0.00016438,2]
[345096360,1734013844008,-620.44,0.00016438,2]
[345096361,1734013844018,-620.44,0.00016438,2]
[345096362,1734013844027,-620.44,0.00016438,2]
[345096363,1734013844036,-620.44,0.00016438,2]
[345096364,1734013844046,-620.44,0.00016438,2]
[345096365,1734013844055,-620.44,0.00016438,2]
[345096366,1734013844064,-620.44,0.00016438,2]
[345096367,1734013844073,-620.44,0.00016438,2]
[345096368,1734013844083,-620.5697104,0.00016438,2]
[345096369,1734013844092,-2888.0,0.00016438,2]
[345096370,1734013844101,-300.0,0.00016438,2]
[345096371,1734013844111,-164.2,0.00016439,2]
[345096372,1734013844120,-200.0,0.00016499,2]
[345096373,1734013844130,-146476.02777201,0.000165,2]
[345096374,1734013844139,-2000.0,0.000165,2]
[345096375,1734013844151,-5206.0,0.000165,2]
[345096376,1734013844164,-1000.0,0.000165,2]
[345096377,1734013844173,-500.0,0.000165,2]
[345096378,1734013844183,-1527.0,0.000165,2]
[345096379,1734013844192,-500.0,0.000165,2]
[345096380,1734013844202,-2000.0,0.0001651,2]
[345096381,1734013844212,-500.0,0.00016516,2]
[345096382,1734013844222,-3663.099066,0.0001652,2]
[345096383,1734013844232,-1056.0,0.00016554,2]
[345096384,1734013844244,-738.27,0.0001658,2]
[345096385,1734013844254,-152.68768893,0.00016599,2]
[345096386,1734013844264,-10666.74255653,0.00016616,2]
[345096387,1734013844274,-150.0,0.00016631,2]
[345096388,1734013844284,-151.0,0.00016647,2]
[345096389,1734013844293,-1167.0,0.00016647,2]
[345096391,1734013844302,-13728.0,0.00016647,2]
[345096393,1734013844311,-500.0,0.00016653,2]
[345096395,1734013844321,-945.35,0.00016658,30]
[345096396,1734013844331,-150.0,0.00016692,2]
[345096397,1734013844341,-175.42,0.00016712,2]
[345096398,1734013844350,-199.09,0.00016714,2]
[345096399,1734013844359,-906.14715,0.0001672,2]
[345096400,1734013844369,-150.0,0.00016729,2]
[345096401,1734013844379,-150.0,0.00016745,2]
[345096402,1734013844388,-152.68768893,0.00016761,2]
[345096403,1734013844398,-150.0,0.00016768,2]
[345096404,1734013844414,-722.24,0.00016772,2]
[345096405,1734013844424,-500.0,0.00016774,2]
[345096406,1734013844432,-1527.0,0.00016774,2]
[345096407,1734013844441,-500.0,0.00016774,2]
[345096408,1734013844450,-500.0,0.0001679,2]
[345096409,1734013844459,-150.0,0.00016796,2]
[345096410,1734013844468,-500.0,0.000168,2]
[345096411,1734013844477,-150.0,0.00016802,2]
[345096412,1734013844487,-150.0,0.00016807,2]
[345096413,1734013844497,-478.28,0.00016813,2]
[345096414,1734013844507,-300.0,0.00016826,2]
[345096415,1734013844517,-150.0,0.00016831,2]
[345096416,1734013844527,-150.0,0.00016878,2]
[345096417,1734013844536,-150.0,0.00016911,2]
[345096418,1734013844546,-162.23550458,0.00016921,2]
[345096419,1734013844556,-152.68768893,0.00016923,2]
[345096420,1734013844566,-500.0,0.00016927,2]
[345096421,1734013844575,-152.0,0.00016951,3]
[345096422,1734013844584,-10666.74255653,0.00016951,2]
[345096423,1734013844594,-13652.24288599,0.00017,2]
[345096424,1734013844604,-550.0,0.00017,2]
[345096425,1734013844614,-5000.0,0.00017,2]
[345096426,1734013844623,-500.0,0.00017048,2]
[345096427,1734013844632,-1527.0,0.00017048,2]
[345096428,1734013844642,-500.0,0.00017048,2]
[345096429,1734013844654,-500.0,0.00017064,2]
[345096430,1734013844663,-152.68768893,0.00017085,2]
[345096431,1734013844672,-164.2,0.0001709,2]
[345096432,1734013844682,-500.0,0.00017201,2]
[345096433,1734013844691,-156.7,0.00017245,2]
[345096434,1734013844701,-1894.0,0.00017276,2]
[345096435,1734013844711,-565.436,0.00017276,2]
[345096436,1734013844721,-3762.0,0.00017276,2]
[345096437,1734013844730,-1253.0,0.00017276,2]
[345096438,1734013844740,-362.909,0.00017276,2]
[345096439,1734013844749,-427.235,0.00017276,2]
[345096440,1734013844759,-535.0,0.00017276,2]
[345096441,1734013844768,-1099.0,0.00017276,2]
[345096442,1734013844777,-1262.0,0.00017276,2]
[345096443,1734013844786,-567.0,0.00017276,2]
[345096444,1734013844795,-3879.0,0.00017276,2]
[345096445,1734013844805,-150.0,0.00017276,2]
[345096446,1734013844819,-10666.74255653,0.00017287,2]
[345096447,1734013844828,-726.39045024,0.00017322,2]
[345096448,1734013844837,-1527.0,0.00017322,2]
[345096449,1734013844847,-984.90484721,0.00017322,2]
[345096450,1734013844856,-496.12,0.00017326,2]
[345096451,1734013844866,-500.0,0.00017338,2]
[345096452,1734013844876,-816.93,0.00017347,2]
[345096453,1734013844886,-722.24,0.0001735,2]
[345096454,1734013844896,-906.14714,0.0001735,2]
[345096455,1734013844909,-1056.0,0.00017382,2]
[345096456,1734013844919,-150.0,0.00017433,2]
[345096457,1734013844928,-150.0,0.00017433,2]
[345096458,1734013844938,-151.954,0.00017433,2]
[345096459,1734013844949,-153.246,0.00017433,2]
[345096460,1734013844959,-150.0,0.00017433,2]
[345096461,1734013844969,-150.0,0.00017433,2]
[345096462,1734013844979,-150.0,0.00017433,2]
[345096463,1734013844989,-201.0,0.0001745,2]
[345096464,1734013844999,-500.0,0.00017475,2]
[345096465,1734013845009,-294.22,0.00017507,2]
[345096466,1734013845019,-150.0,0.00017507,2]
[345096467,1734013845029,-150.0,0.00017507,2]
[345096468,1734013845038,-1600.0,0.00017534,2]
[345096469,1734013845047,-1527.0,0.00017596,2]
[345096470,1734013845056,-200.0,0.00017599,2]
[345096471,1734013845066,-440.0,0.000176,5]
[345096472,1734013845076,-2093.18,0.000176,31]
[345096473,1734013845086,-2093.18,0.000176,31]
[345096474,1734013845096,-2093.18,0.000176,31]
[345096475,1734013845106,-2093.18,0.000176,31]
[345096476,1734013845116,-2093.18,0.000176,31]
[345096477,1734013845125,-2093.18,0.000176,31]
[345096478,1734013845135,-2093.18,0.000176,31]
[345096479,1734013845144,-2093.18,0.000176,31]
[345096480,1734013845158,-2093.18,0.000176,31]
[345096481,1734013845169,-2093.18,0.000176,31]
[345096482,1734013845179,-2093.18,0.000176,31]
[345096483,1734013845188,-2093.18,0.000176,31]
[345096484,1734013845198,-2093.18,0.000176,31]
[345096485,1734013845207,-2093.18,0.000176,31]
[345096486,1734013845217,-2093.18,0.000176,31]
[345096487,1734013845227,-2093.18,0.000176,31]
[345096488,1734013845237,-500.0,0.00017612,2]
[345096489,1734013845246,-10666.74255653,0.00017622,2]
[345096490,1734013845256,-56141.90712946,0.0001766,2]
[345096491,1734013845266,-2676.92276563,0.0001767,30]
[345096492,1734013845276,-164.2,0.00017742,2]
[345096493,1734013845286,-500.0,0.00017749,2]
[345096494,1734013845296,-2165.98,0.00017762,7]
[345096495,1734013845305,-2165.98,0.00017762,7]
[345096496,1734013845315,-2165.98,0.00017762,7]
[345096497,1734013845325,-2165.98,0.00017762,7]
[345096498,1734013845335,-2888.0,0.00017808,4]
[345096499,1734013845345,-1000.0,0.00017816,2]
[345096500,1734013845354,-169.80396527,0.0001782,2]
[345096501,1734013845363,-942.51,0.00017836,2]
[345096502,1734013845372,-200.0,0.00017838,2]
[345096503,1734013845383,-1527.0,0.0001787,2]
[345096504,1734013845393,-500.0,0.00017886,2]
[345096505,1734013845405,-392.42,0.000179,2]
[345096506,1734013845415,-392.42,0.000179,2]
[345096507,1734013845425,-392.42,0.000179,2]
[345096508,1734013845434,-392.42,0.000179,2]
[345096509,1734013845445,-392.42,0.000179,2]
[345096510,1734013845455,-392.42,0.000179,2]
[345096511,1734013845465,-392.42,0.000179,2]
[345096512,1734013845475,-392.42,0.000179,2]
[345096513,1734013845484,-392.42,0.000179,2]
[345096514,1734013845494,-392.42,0.000179,2]
[345096515,1734013845504,-392.42,0.000179,2]
[345096516,1734013845514,-392.42,0.000179,2]
[345096517,1734013845524,-392.42,0.000179,2]
[345096518,1734013845533,-392.42,0.000179,2]
[345096519,1734013845543,-392.42,0.000179,2]
[345096520,1734013845553,-392.42,0.000179,2]
[345096521,1734013845563,-392.42,0.000179,2]
[345096522,1734013845573,-392.42,0.000179,2]
[345096523,1734013845583,-392.42,0.000179,2]
[345096524,1734013845592,-392.42,0.000179,2]
[345096525,1734013845602,-392.42,0.000179,2]
[345096526,1734013845611,-392.42,0.000179,2]
[345096527,1734013845621,-392.42,0.000179,2]
[345096528,1734013845631,-392.42,0.000179,2]
[345096529,1734013845641,-392.42,0.000179,2]
[345096530,1734013845654,-392.42,0.000179,2]
[345096531,1734013845664,-392.42,0.000179,2]
[345096532,1734013845674,-392.42,0.000179,2]
[345096533,1734013845684,-392.42,0.000179,2]
[345096534,1734013845695,-392.42,0.000179,2]
[345096535,1734013845704,-392.42,0.000179,2]
[345096536,1734013845715,-392.42,0.000179,2]
[345096537,1734013845724,-392.42,0.000179,2]
[345096538,1734013845734,-392.42,0.000179,2]
[345096539,1734013845744,-392.42,0.000179,2]
[345096540,1734013845754,-392.42,0.000179,2]
[345096541,1734013845764,-392.42,0.000179,2]
[345096542,1734013845774,-392.42,0.000179,2]
[345096543,1734013845784,-392.42,0.000179,2]
[345096544,1734013845795,-392.42,0.000179,2]
[345096545,1734013845805,-392.42,0.000179,2]
[345096546,1734013845815,-392.42,0.000179,2]
[345096547,1734013845826,-392.42,0.000179,2]
[345096548,1734013845836,-392.42,0.000179,2]
[345096549,1734013845846,-722.24,0.00017928,2]
[345096550,1734013845856,-11065.0,0.00017957,2]
[345096551,1734013845866,-10666.74255653,0.00017958,2]
[345096552,1734013845876,-906.14715,0.0001797,2]
[345096553,1734013845886,-392.42,0.0001799,2]
[345096554,1734013845895,-5308.94091578,0.00018,2]
[345096555,1734013845908,-5000.0,0.00018,2]
[345096556,1734013845917,-5000.0,0.00018,2]
[345096557,1734013845926,-5000.0,0.00018,2]
[345096558,1734013845936,-5000.0,0.00018,2]
[345096559,1734013845946,-5000.0,0.00018,2]
[345096560,1734013845956,-23000.0,0.00018,2]
[345096561,1734013845966,-1000.0,0.00018,30]
[345096564,1734013845977,-300.0,0.00018,20]
[345096565,1734013845987,-674.98,0.00018,2]
[345096567,1734013845997,-5000.0,0.00018,2]
[345096568,1734013846007,-500.0,0.00018023,2]
[345096569,1734013846016,-2165.98,0.00018035,7]
[345096570,1734013846026,-2165.98,0.00018035,7]
[345096571,1734013846036,-2976.06061829,0.000181,5]
[345096572,1734013846046,-440.0,0.000181,5]
[345096573,1734013846055,-1527.0,0.00018144,2]
[345096574,1734013846066,-500.0,0.0001816,2]
[345096575,1734013846075,-1600.0,0.00018183,2]
[345096576,1734013846085,-500.0,0.0001822,2]
[345096577,1734013846095,-1056.0,0.00018251,2]
[345096578,1734013846105,-392.42,0.00018283,2]
[345096579,1734013846114,-10666.74255653,0.00018293,2]
[345096580,1734013846124,-500.0,0.00018297,2]
[345096581,1734013846133,-2165.98,0.00018308,7]
[345096582,1734013846142,-2165.98,0.00018308,7]
[345096583,1734013846151,-156.7,0.00018322,2]
[345096584,1734013846165,-8563.14073452,0.0001838,2]
[345096585,1734013846178,-5000.0,0.0001838,2]
[345096586,1734013846187,-5000.0,0.0001838,2]
[345096587,1734013846197,-164.2,0.00018393,2]
[345096588,1734013846207,-1527.0,0.00018418,2]
[345096589,1734013846216,-738.27,0.00018422,2]
[345096590,1734013846226,-500.0,0.00018434,2]
[345096591,1734013846236,-392.42,0.0001849,2]
[345096592,1734013846246,-153.39,0.00018493,2]
[345096593,1734013846256,-200.0,0.00018499,2]
[345096594,1734013846265,-1014.6,0.00018499,2]
[345096595,1734013846276,-27292.07246933,0.000185,7]
[345096596,1734013846285,-160.967916,0.000185,2]
[345096597,1734013846295,-151.0,0.000185,2]
[345096598,1734013846305,-160.967916,0.000185,2]
[345096599,1734013846315,-151.0,0.000185,2]
[345096600,1734013846324,-252.078168,0.000185,2]
[345096601,1734013846334,-252.078168,0.000185,2]
[345096602,1734013846343,-185.910455,0.000185,2]
[345096603,1734013846353,-800.0,0.000185,2]
[345096604,1734013846363,-800.0,0.000185,2]
[345096605,1734013846374,-800.0,0.000185,2]
[345096606,1734013846383,-800.0,0.000185,2]
[345096607,1734013846393,-800.0,0.000185,2]
[345096608,1734013846405,-800.0,0.000185,2]
[345096609,1734013846415,-2832.12446,0.00018543,30]
[345096610,1734013846425,-500.0,0.00018571,2]
[345096611,1734013846435,-2165.98,0.00018581,7]
[345096612,1734013846444,-2165.98,0.00018581,7]
[345096613,1734013846454,-440.0,0.000186,6]
[345096614,1734013846463,-906.14715,0.000186,2]
[345096615,1734013846473,-423.0,0.00018603,2]
[345096616,1734013846483,-10666.74255653,0.00018629,2]
[345096617,1734013846492,-674.98,0.00018633,2]
[345096618,1734013846502,-1527.0,0.00018692,2]
[345096619,1734013846512,-500.0,0.00018708,2]
[345096620,1734013846522,-151.0,0.00018754,2]
[345096621,1734013846531,-151.0,0.00018754,2]
[345096622,1734013846540,-151.0,0.00018754,2]
[345096623,1734013846550,-9296.87407225,0.00018754,2]
[345096624,1734013846560,-270.121219,0.00018798,3]
[345096625,1734013846570,-1600.0,0.00018832,2]
[345096626,1734013846580,-151.0,0.00018832,2]
[345096627,1734013846589,-500.0,0.00018845,2]
[345096628,1734013846598,-2165.98,0.00018855,7]
[345096629,1734013846608,-2165.98,0.00018855,7]
[345096630,1734013846618,-209.0,0.0001886,2]
[345096631,1734013846628,-392.42,0.00018889,2]
[345096632,1734013846639,-392.42,0.00018889,2]
[345096633,1734013846649,-392.42,0.00018889,2]
[345096634,1734013846661,-392.42,0.00018889,2]
[345096636,1734013846671,-200.0,0.00018898,2]
[345096637,1734013846681,-171987.43054422,0.00018899,2]
[345096638,1734013846690,-151.0,0.00018899,2]
[345096639,1734013846700,-151.0,0.00018899,2]
[345096640,1734013846709,-151.0,0.00018899,2]
[345096641,1734013846718,-1025.682008,0.00018899,2]
[345096642,1734013846729,-1025.682008,0.00018899,2]
[345096643,1734013846739,-10666.74255653,0.00018964,2]
[345096644,1734013846749,-1527.0,0.00018966,2]
[345096645,1734013846758,-288.66,0.00018982,2]
[345096646,1734013846767,-12500.0,0.00019,7]
[345096647,1734013846777,-2080.65563346,0.00019,4]
[345096648,1734013846999,-30240.38886914,0.00019,4]
[345096650,1734013847009,-477.3226841,0.00019,5]
[345096651,1734013847018,-5628.0,0.00019,2]
[345096653,1734013847027,-600.0,0.00019,2]
[345096654,1734013847038,-5000.0,0.00019,2]
[345096655,1734013847047,-496.12,0.00019058,2]
[345096656,1734013847056,-440.0,0.000191,6]
[345096657,1734013847065,-2165.98,0.00019128,7]
[345096658,1734013847075,-2165.98,0.00019128,7]
[345096659,1734013847084,-6567.9973354,0.00019157,2]
[345096660,1734013847094,-160.967916,0.00019157,2]
[345096661,1734013847103,-151.0,0.00019157,2]
[345096662,1734013847114,-160.967916,0.00019157,2]
[345096663,1734013847123,-151.0,0.00019157,2]
[345096664,1734013847133,-814.3265744,0.00019157,2]
[345096665,1734013847144,-293.18225054,0.00019164,2]
[345096666,1734013847154,-2396.1294305,0.00019165,2]
[345096667,1734013847168,-200.0,0.00019169,2]
[345096668,1734013847177,-174834.089999,0.0001917,4]
[345096669,1734013847187,-151.0,0.0001917,2]
[345096670,1734013847196,-151.0,0.0001917,2]
[345096671,1734013847208,-151.0,0.0001917,2]
[345096672,1734013847218,-252.078168,0.0001917,2]
[345096673,1734013847227,-252.078168,0.0001917,2]
[345096674,1734013847239,-1025.682008,0.0001917,2]
[345096675,1734013847248,-1025.682008,0.0001917,2]
[345096676,1734013847258,-150.0,0.00019177,2]
[345096677,1734013847268,-500.0,0.00019178,2]
[345096678,1734013847277,-557.55925823,0.00019178,2]
[345096679,1734013847287,-500.0,0.00019178,2]
[345096680,1734013847297,-500.0,0.00019178,2]
[345096681,1734013847308,-500.0,0.00019178,2]
[345096682,1734013847318,-509.76729882,0.00019178,2]
[345096683,1734013847329,-500.0,0.00019178,2]
[345096684,1734013847339,-500.0,0.00019178,2]